bitfinex/quotes_SOLUSD_20251013
["timestamp","ask_amount","ask_price","bid_price","bid_amount"]
[1760376573337,0.66,201.87,201.85,4.08070262]
[1760376573528,9.7,201.86,201.85,4.08070262]
[1760376574464,0.66,201.9,201.85,9.03487651]
[1760376574767,9.7,201.89,201.86,4.08070262]
[1760376574934,0.66,201.88,201.86,4.08070262]
[1760376575457,0.66,201.88,201.87,4.08070262]
[1760376575631,0.66,201.88,201.86,4.08070262]
[1760376576029,0.66,201.88,201.87,20.8]
[1760376576235,9.7,201.88,201.87,25.75368306]
[1760376576750,9.7,201.88,201.86,4.08070262]
[1760376577632,9.7,201.88,201.87,4.08070262]
[1760376579043,9.7,201.88,201.86,9.03458769]
[1760376579241,0.66,201.87,201.84,25.75422077]
[1760376579660,0.66,201.86,201.84,31.88111201]
[1760376579856,9.02,201.85,201.84,31.88111201]
[1760376581763,9.02,201.85,201.84,25.75422077]
[1760376582071,9.02,201.85,201.84,31.88111201]
[1760376583959,13.0693,201.92,201.84,31.88111201]
[1760376584258,13.0693,201.92,201.91,6.12689124]
[1760376584442,22.0893,201.92,201.91,6.12689124]
[1760376584842,22.7493,201.92,201.9,6.12689124]
[1760376585266,6.78689124,201.91,201.85,6.12689124]
[1760376585463,9.68,201.9,201.85,6.12689124]
[1760376585654,0.66,201.89,201.87,6.12689124]
[1760376585851,9.02,201.88,201.87,6.12689124]
[1760376587469,9.02,201.88,201.87,11.08045474]
[1760376587671,9.02,201.88,201.84,12.38604835]
[1760376587865,9.02,201.88,201.87,6.12689124]
[1760376588470,13.0693,201.92,201.87,6.12689124]
[1760376588664,13.7693,201.92,201.91,6.12689124]
[1760376588973,22.7893,201.92,201.91,6.12689124]
[1760376589173,22.0893,201.92,201.91,6.12689124]
[1760376590146,22.7593,201.92,201.9,6.12689124]
[1760376590370,0.67,201.91,201.9,6.12689124]
[1760376591173,13.0693,201.92,201.9,6.12689124]
[1760376591479,9.02,201.91,201.89,17.33612125]
[1760376591861,9.02,201.91,201.89,12.38298083]
[1760376592669,9.02,201.91,201.9,6.12689124]
[1760376592866,13.0693,201.92,201.9,6.46689124]
[1760376593069,22.0893,201.92,201.91,27.26689124]
[1760376593367,13.0693,201.92,201.91,27.26689124]
[1760376593561,100.0,201.95,201.91,27.26689124]
[1760376593562,100.0,201.95,201.92,10.87647521]
[1760376593770,109.02,201.95,201.94,26.92689124]
[1760376594068,100.0,201.95,201.94,32.21885717]
[1760376594568,100.0,201.95,201.94,25.75196593]
[1760376594768,100.0,201.95,201.94,31.87885717]
[1760376595068,100.0,201.95,201.94,25.75196593]
[1760376595257,100.0,201.95,201.94,31.87885717]
[1760376596669,100.0,201.95,201.94,25.75196593]
[1760376596858,100.67,201.95,201.91,6.12689124]
[1760376597167,9.69,201.94,201.9,26.92689124]
[1760376597469,8.63558011,201.94,201.92,20.8]
[1760376598177,8.63558011,201.94,201.91,4.95270169]
[1760376598849,14.76247135,201.94,201.91,4.95270169]
[1760376599250,8.63558011,201.94,201.91,4.95270169]
[1760376599556,100.0,201.95,201.92,20.8]
[1760376599759,9.02,201.94,201.93,6.12689124]
[1760376599951,9.02,201.94,201.92,26.92689124]
[1760376600271,100.0,201.95,201.93,6.83689124]
[1760376600448,100.0,201.95,201.94,6.83689124]
[1760376600655,100.0,201.95,201.94,26.92689124]
[1760376601178,100.0,201.95,201.94,6.12689124]
[1760376602850,100.0,201.95,201.94,11.07885717]
[1760376603055,109.02,201.95,201.94,11.78885717]
[1760376603480,109.02,201.95,201.94,4.95196593]
[1760376603684,109.02,201.95,201.94,11.78885717]
[1760376604054,74.10854376,201.95,201.94,11.78885717]
[1760376604359,74.10854376,201.95,201.94,5.66196593]
[1760376604560,74.10854376,201.95,201.94,11.78885717]
[1760376604853,49.18760475,201.95,201.94,22.66533238]
[1760376605054,49.18760475,201.95,201.94,43.46533238]
[1760376606062,49.18760475,201.95,201.94,4.95196593]
[1760376606380,58.87760475,201.95,201.89,4.95319233]
[1760376606551,0.67,201.94,201.89,23.4630644]
[1760376606878,9.69,201.93,201.9,6.12689124]
[1760376607079,49.18760475,201.95,201.92,6.12689124]
[1760376607276,9.02,201.94,201.93,6.12689124]
[1760376607657,49.18760475,201.95,201.93,6.83689124]
[1760376607972,58.20760475,201.95,201.94,6.12689124]
[1760376608172,58.20760475,201.95,201.92,21.51]
[1760376608369,58.20760475,201.95,201.94,6.12689124]
[1760376608769,58.20760475,201.95,201.94,11.78885717]
[1760376609173,58.20760475,201.95,201.94,4.95196593]
[1760376609369,58.20760475,201.95,201.94,11.07885717]
[1760376609683,49.18760475,201.95,201.94,11.07885717]
[1760376610063,58.20760475,201.95,201.94,11.07885717]
[1760376611257,58.87760475,201.95,201.93,4.95216534]
[1760376611473,6.79689124,201.94,201.85,10.87647521]
[1760376611664,6.12689124,201.87,201.83,4.95443032]
[1760376611866,9.69,201.86,201.83,4.95443032]
[1760376612368,6.12689124,201.92,201.85,6.12689124]
[1760376612565,6.12689124,201.92,201.83,5.66443032]
[1760376612566,9.69,201.91,201.86,6.12689124]
[1760376612758,0.67,201.9,201.86,6.12689124]
[1760376612963,9.69,201.89,201.86,4.95369839]
[1760376613160,0.67,201.88,201.86,4.95369839]
[1760376613486,9.02,201.87,201.85,4.95415078]
[1760376613795,9.02,201.87,201.82,6.12689124]
[1760376613796,0.67,201.86,201.82,6.12689124]
[1760376613955,9.69,201.85,201.81,6.12689124]
[1760376614160,9.69,201.85,201.8,11.08229262]
[1760376614161,0.67,201.84,201.8,11.08229262]
[1760376614362,9.69,201.83,201.82,20.8]
[1760376614767,9.69,201.83,201.8,4.95540138]
[1760376614969,0.67,201.82,201.78,4.95589255]
[1760376615180,15.81689124,201.81,201.75,6.12689124]
[1760376615367,15.81689124,201.8,201.73,4.9571209]
[1760376615567,15.81689124,201.8,201.74,6.12689124]
[1760376615568,0.67,201.79,201.74,6.12689124]
[1760376615784,9.69,201.78,201.74,6.12689124]
[1760376615982,9.69,201.78,201.72,21.0]
[1760376615983,6.79689124,201.77,201.72,21.0]
[1760376616184,9.69,201.76,201.74,20.8]
[1760376616367,9.69,201.76,201.72,0.2]
[1760376616368,0.67,201.75,201.72,0.2]
[1760376616571,9.02,201.74,201.72,5.15734401]
[1760376616780,9.69,201.73,201.72,0.2]
[1760376617296,9.69,201.73,201.72,5.15736664]
[1760376617465,9.69,201.73,201.72,0.2]
[1760376618171,0.67,201.73,201.72,0.2]
[1760376618501,9.69,201.73,201.72,0.2]
[1760376618994,9.69,201.73,201.72,5.15736664]
[1760376619194,9.69,201.73,201.72,0.2]
[1760376619705,0.68,201.77,201.72,0.2]
[1760376619866,9.7,201.76,201.72,0.2]
[1760376620189,9.02,201.75,201.74,6.12689124]
[1760376620363,9.7,201.75,201.72,11.2841583]
[1760376620564,0.68,201.74,201.72,5.15726706]
[1760376620778,9.02,201.73,201.72,11.2841583]
[1760376621291,9.02,201.73,201.72,5.15726706]
[1760376621665,9.02,201.73,201.72,45.16757491]
[1760376622068,9.02,201.73,201.72,44.47757491]
[1760376622498,9.7,201.73,201.72,0.2]
[1760376622893,15.82689124,201.73,201.72,0.2]
[1760376623092,15.83384185,201.72,201.68,0.2]
[1760376623416,6.12689124,201.69,201.68,0.2]
[1760376623772,15.82689124,201.69,201.68,0.2]
[1760376623972,9.7,201.69,201.68,0.2]
[1760376624583,9.02,201.69,201.68,0.2]
[1760376624779,9.7,201.69,201.68,0.2]
[1760376626494,12.39189614,201.75,201.68,0.2]
[1760376626495,10.87647521,201.77,201.68,11.9752411]
[1760376626707,0.68,201.75,201.7,6.12689124]
[1760376626905,0.68,201.77,201.74,6.12689124]
[1760376627104,9.02,201.76,201.74,6.12689124]
[1760376627676,0.68,201.8,201.75,6.12689124]
[1760376627992,9.7,201.79,201.74,6.12689124]
[1760376628203,0.68,201.78,201.74,6.12689124]
[1760376628385,9.02,201.77,201.74,6.12689124]
[1760376628980,9.7,201.77,201.73,17.34984914]
[1760376629181,9.7,201.77,201.75,11.08333242]
[1760376629500,0.68,201.76,201.72,11.08425788]
[1760376629703,9.7,201.75,201.72,4.95736664]
[1760376630284,10.87647521,201.82,201.73,6.12689124]
[1760376630594,9.7,201.81,201.76,6.12689124]
[1760376630786,0.68,201.8,201.75,6.12689124]
[1760376630990,9.02,201.79,201.75,6.12689124]
[1760376631494,9.7,201.79,201.75,11.08344164]
[1760376631703,0.68,201.78,201.74,11.08359317]
[1760376631882,9.02,201.77,201.74,4.95670193]
[1760376632086,9.02,201.77,201.75,6.12689124]
[1760376632679,9.02,201.77,201.71,20.8]
[1760376632680,0.68,201.76,201.71,20.8]
[1760376632902,15.82689124,201.75,201.68,6.32689124]
[1760376633079,9.7,201.74,201.68,6.32689124]
[1760376633285,9.02,201.73,201.68,11.28511415]
[1760376633584,9.02,201.73,201.68,0.2]
[1760376633779,9.02,201.73,201.7,6.12689124]
[1760376633994,0.68,201.72,201.69,6.12689124]
[1760376634429,6.12689124,201.7,201.68,0.2]
[1760376634591,15.14689124,201.69,201.68,0.2]
[1760376634793,9.7,201.69,201.68,0.2]
[1760376635409,0.68,201.75,201.68,7.01689124]
[1760376635722,0.68,201.75,201.68,6.32689124]
[1760376635723,15.82689124,201.74,201.68,6.32689124]
[1760376636001,6.80689124,201.73,201.68,0.2]
[1760376636202,6.12689124,201.7,201.68,0.2]
[1760376636405,15.14689124,201.69,201.68,0.2]
[1760376636706,15.82689124,201.69,201.68,0.2]
[1760376637389,20.78499526,201.69,201.68,0.2]
[1760376638107,19.99999999,201.76,201.68,5.84834986]
[1760376638405,0.68,201.77,201.68,0.2]
[1760376638406,6.12689124,201.74,201.68,0.2]
[1760376638703,9.7,201.75,201.7,6.12689124]
[1760376638920,0.68,201.74,201.7,6.12689124]
[1760376639216,0.68,201.73,201.69,6.12689124]
[1760376639416,15.14689124,201.75,201.68,5.15825944]
[1760376639417,9.02,201.72,201.7,4.09003421]
[1760376639791,9.02,201.72,201.69,4.09003421]
[1760376640610,9.7,201.72,201.68,4.29003421]
[1760376640800,9.72764662,201.71,201.68,0.2]
[1760376641089,13.11003421,201.7,201.68,0.2]
[1760376641613,5.63810402,201.69,201.68,0.2]
[1760376641822,9.7,201.7,201.68,0.2]
[1760376642111,0.68,201.69,201.68,0.2]
[1760376643622,5.63810402,201.69,201.68,0.2]
[1760376643836,0.68,201.72,201.68,0.2]
[1760376644112,20.57647521,201.71,201.68,0.2]
[1760376644320,0.68,201.7,201.68,0.2]
[1760376644613,9.02,201.69,201.68,0.2]
[1760376646609,25.85734106,201.74,201.68,0.2]
[1760376646610,0.68,201.75,201.68,9.93838407]
[1760376646805,0.68,201.81,201.74,4.09003421]
[1760376647030,0.68,201.81,201.75,4.09003421]
[1760376647031,9.02,201.8,201.75,4.09003421]
[1760376647229,9.02,201.8,201.72,0.69]
[1760376647230,20.8,201.77,201.72,0.69]
[1760376647530,9.02,201.76,201.73,0.69]
[1760376647830,9.02,201.75,201.74,0.67]
[1760376648527,9.02,201.75,201.74,4.76003421]
[1760376648909,9.02,201.75,201.69,0.67]
[1760376649110,9.02,201.75,201.73,4.09003421]
[1760376649330,9.02,201.75,201.69,0.67]
[1760376649527,9.02,201.75,201.68,17.55422451]
[1760376649528,9.71,201.75,201.7,4.09003421]
[1760376649832,9.71,201.75,201.7,9.04773041]
[1760376650220,9.71,201.75,201.7,4.9576962]
[1760376650427,14.66671099,201.75,201.7,9.04773041]
[1760376650625,9.02,201.75,201.71,4.09003421]
[1760376651007,0.69,201.74,201.68,0.2]
[1760376651340,4.09003421,201.73,201.68,0.2]
[1760376651507,9.71,201.72,201.68,0.2]
[1760376652132,13.97743505,201.72,201.68,0.2]
[1760376652320,14.66743505,201.72,201.68,0.2]
[1760376652529,13.97743505,201.72,201.68,0.2]
[1760376652836,0.69,201.71,201.68,0.2]
[1760376653043,0.69,201.7,201.68,0.2]
[1760376653227,9.02,201.69,201.68,0.2]
[1760376653919,9.02,201.69,201.68,4.29003421]
[1760376654522,9.02,201.69,201.68,0.2]
[1760376654725,9.02,201.69,201.68,4.29003421]
[1760376655839,9.02,201.69,201.68,0.2]
[1760376660242,14.66810402,201.69,201.68,0.2]
[1760376660438,18.75813823,201.69,201.68,0.2]
[1760376662930,29.63461344,201.69,201.68,0.2]
[1760376664142,29.63461344,201.69,201.68,1e-08]
[1760376664518,31.67647521,201.66,201.65,0.2]
[1760376664715,44.76650942,201.66,201.65,0.2]
[1760376664919,50.41535103,201.66,201.65,0.2]
[1760376666145,20.61535103,201.66,201.65,0.2]
[1760376666320,29.61535103,201.66,201.65,0.2]
[1760376666646,28.92535103,201.66,201.65,0.2]
[1760376666847,4.09003421,201.69,201.65,0.2]
[1760376667035,0.69,201.72,201.65,9.24909111]
[1760376667227,14.96650942,201.74,201.66,0.66]
[1760376667432,9.0,201.73,201.67,4.09003421]
[1760376667627,9.0,201.72,201.66,4.75003421]
[1760376667830,13.09003421,201.72,201.66,0.66]
[1760376668148,13.09003421,201.72,201.65,0.2]
[1760376668149,4.09003421,201.69,201.65,0.2]
[1760376668356,0.69,201.71,201.65,0.2]
[1760376668357,4.09003421,201.66,201.65,0.2]
[1760376668644,13.09003421,201.66,201.65,0.2]
[1760376669023,13.95884161,201.66,201.65,0.2]
[1760376669218,18.04887582,201.66,201.65,0.2]
[1760376669449,9.0,201.66,201.65,0.2]
[1760376669827,13.95884161,201.66,201.65,0.2]
[1760376670145,18.04887582,201.66,201.65,0.2]
[1760376670549,29.61535103,201.66,201.65,0.2]
[1760376670721,18.73887582,201.66,201.65,0.2]
[1760376670921,4.95862739,201.67,201.65,0.2]
[1760376671145,9.0,201.66,201.65,0.2]
[1760376671361,13.09003421,201.66,201.65,0.2]
[1760376671833,13.78003421,201.66,201.65,0.2]
[1760376672449,24.65650942,201.66,201.65,0.2]
[1760376673248,29.61535103,201.66,201.65,0.2]
[1760376674332,20.61535103,201.66,201.65,0.2]
[1760376674525,29.61535103,201.66,201.65,0.2]
[1760376675449,25.52531682,201.66,201.65,0.2]
[1760376675645,16.52531682,201.66,201.65,0.2]
[1760376675822,29.61535103,201.66,201.65,0.2]
[1760376676227,28.92535103,201.66,201.65,0.2]
[1760376676427,4.95834986,201.68,201.65,0.2]
[1760376676629,9.0,201.67,201.65,9.90911829]
[1760376676830,4.09003421,201.77,201.66,4.75003421]
[1760376677028,4.09003421,201.74,201.67,0.66]
[1760376677253,4.09003421,201.71,201.65,26.6188801]
[1760376677433,9.69,201.73,201.65,26.6188801]
[1760376677434,13.09003421,201.7,201.65,26.6188801]
[1760376677630,13.09003421,201.7,201.65,0.2]
[1760376677631,4.09003421,201.66,201.65,0.2]
[1760376677832,23.96650942,201.66,201.65,0.2]
[1760376678140,24.65650942,201.66,201.65,0.2]
[1760376679154,29.61535103,201.66,201.65,0.2]
[1760376679746,16.52531682,201.66,201.65,0.2]
[1760376679944,24.83531682,201.66,201.65,0.2]
[1760376680450,9.0,201.66,201.65,0.2]
[1760376681733,29.61535103,201.66,201.65,0.2]
[1760376682951,4.95884161,201.66,201.65,0.2]
[1760376683163,24.83531682,201.66,201.65,0.2]
[1760376683462,4.95884161,201.66,201.65,0.2]
[1760376683667,9.0,201.66,201.65,0.2]
[1760376683848,9.0,201.66,201.65,4.99003421]
[1760376684360,9.0,201.66,201.65,9.94912173]
[1760376684564,10.87647521,201.71,201.65,9.94912173]
[1760376684772,10.87647521,201.71,201.67,4.09003421]
[1760376684773,13.95788723,201.7,201.67,4.09003421]
[1760376684954,13.95788723,201.7,201.66,4.09003421]
[1760376685463,9.0,201.69,201.66,4.09003421]
[1760376685653,9.0,201.68,201.66,4.09003421]
[1760376685848,9.0,201.67,201.66,4.79003421]
[1760376686464,4.95665239,201.75,201.66,4.79003421]
[1760376686683,9.0,201.74,201.73,4.09003421]
[1760376686893,9.0,201.74,201.68,20.8]
[1760376686894,9.69,201.74,201.68,20.8]
[1760376687046,9.69,201.74,201.65,17.55675609]
[1760376687047,4.09003421,201.73,201.67,4.79003421]
[1760376687361,9.0,201.72,201.69,4.09003421]
[1760376687568,9.0,201.72,201.69,4.79003421]
[1760376687765,13.95738301,201.72,201.69,0.7]
[1760376688063,13.95738301,201.72,201.68,4.09003421]
[1760376688265,13.95738301,201.72,201.68,4.79003421]
[1760376688451,13.95738301,201.72,201.69,0.7]
[1760376688654,13.95738301,201.72,201.68,4.79003421]
[1760376689348,4.78003421,201.71,201.65,0.2]
[1760376689546,4.09003421,201.68,201.65,0.2]
[1760376691677,9.0,201.67,201.63,4.09003421]
[1760376691870,9.0,201.67,201.65,4.09003421]
[1760376692048,4.9571209,201.73,201.66,4.09003421]
[1760376692374,4.09003421,201.71,201.65,4.09003421]
[1760376692666,4.09003421,201.67,201.61,4.09003421]
[1760376692871,9.0,201.66,201.62,4.09003421]
[1760376693446,9.0,201.66,201.62,24.89003421]
[1760376693649,9.0,201.66,201.63,4.09003421]
[1760376693896,4.95810402,201.69,201.64,4.09003421]
[1760376694062,20.8,201.74,201.62,25.75979648]
[1760376694063,9.0,201.68,201.67,4.09003421]
[1760376694875,10.87647521,201.76,201.67,4.60003421]
[1760376695071,9.0,201.75,201.72,4.09003421]
[1760376695461,0.69,201.79,201.74,4.09003421]
[1760376695665,9.0,201.78,201.74,4.09003421]
[1760376696367,9.0,201.78,201.75,4.09003421]
[1760376696575,0.69,201.77,201.72,4.09003421]
[1760376696761,0.69,201.77,201.7,4.9578582]
[1760376696762,4.78003421,201.76,201.7,4.09003421]
[1760376696965,9.0,201.75,201.73,4.09003421]
[1760376697362,3.27760151,201.83,201.77,20.8]
[1760376697563,9.0,201.82,201.78,4.09003421]
[1760376697770,0.69,201.81,201.76,4.09003421]
[1760376697976,9.0,201.82,201.79,4.09003421]
[1760376698900,9.69,201.82,201.78,4.09003421]
[1760376699058,0.69,201.81,201.76,4.09003421]
[1760376699260,4.78003421,201.8,201.74,9.04686101]
[1760376699557,9.0,201.82,201.77,4.09003421]
[1760376699558,9.0,201.79,201.77,4.09003421]
[1760376699757,9.0,201.79,201.78,4.09003421]
[1760376700962,0.69,201.87,201.78,4.60003421]
[1760376701169,0.69,201.87,201.83,4.09003421]
[1760376701170,9.0,201.86,201.83,4.09003421]
[1760376701379,9.0,201.86,201.85,6.12528306]
[1760376701759,9.0,201.86,201.84,6.12528306]
[1760376701965,9.0,201.86,201.85,6.12528306]
[1760376702680,9.0,201.86,201.81,20.8]
[1760376702861,9.0,201.86,201.79,6.12528306]
[1760376702862,6.81528306,201.85,201.79,6.12528306]
[1760376703064,6.12528306,201.8,201.73,6.12528306]
[1760376703380,6.12528306,201.78,201.72,6.12528306]
[1760376703557,9.0,201.77,201.73,26.92528306]
[1760376703760,9.69,201.77,201.73,26.92528306]
[1760376703974,9.0,201.77,201.74,6.12528306]
[1760376704174,9.0,201.77,201.75,6.12528306]
[1760376704574,9.0,201.77,201.73,20.8]
[1760376704778,9.0,201.77,201.75,6.12528306]
[1760376707199,9.0,201.77,201.76,6.63528306]
[1760376707506,9.0,201.77,201.76,6.12528306]
[1760376707685,9.67,201.77,201.73,11.08217289]
[1760376707874,9.0,201.77,201.73,11.08217289]
[1760376708074,9.0,201.77,201.73,4.95688983]
[1760376708305,9.0,201.77,201.74,0.51]
[1760376708478,9.0,201.77,201.75,6.12528306]
[1760376708793,9.0,201.77,201.72,4.95712206]
[1760376708794,9.0,201.77,201.76,6.12528306]
[1760376709198,9.0,201.77,201.76,11.08166688]
[1760376710876,9.0,201.77,201.76,6.12528306]
[1760376711076,9.0,201.77,201.75,11.08189217]
[1760376711499,9.0,201.77,201.76,6.12528306]
[1760376712501,9.71,201.77,201.75,6.12528306]
[1760376712683,9.0,201.77,201.75,6.12528306]
[1760376713704,21.51,201.85,201.76,6.12528306]
[1760376713917,0.71,201.88,201.84,6.12528306]
[1760376714203,0.71,201.88,201.87,6.12528306]
[1760376714501,9.71,201.88,201.87,6.12528306]
[1760376714703,10.87647521,201.87,201.81,6.12528306]
[1760376715006,6.83528306,201.86,201.8,6.12528306]
[1760376715208,9.0,201.85,201.82,6.12528306]
[1760376715414,9.71,201.85,201.82,6.12528306]
[1760376715584,0.71,201.84,201.82,6.12528306]
[1760376716006,9.0,201.85,201.83,6.12528306]
[1760376716204,9.0,201.85,201.84,6.12528306]
[1760376717279,9.71,201.85,201.82,4.95476698]
[1760376717499,9.0,201.85,201.84,6.12528306]
[1760376719101,9.71,201.85,201.83,6.12528306]
[1760376719306,0.71,201.84,201.79,4.95564695]
[1760376719486,0.71,201.83,201.8,6.12528306]
[1760376719799,9.0,201.82,201.8,0.51]
[1760376720000,4.95346765,201.88,201.78,17.34562394]
[1760376720001,0.71,201.9,201.81,0.51]
[1760376720203,8.98,201.89,201.81,0.51]
[1760376720726,8.98,201.89,201.88,6.12528306]
[1760376720884,9.69,201.89,201.88,6.12528306]
[1760376721086,9.69,201.89,201.78,17.34562394]
[1760376721416,0.71,201.88,201.83,6.12528306]
[1760376721592,0.71,201.87,201.84,6.12528306]
[1760376721919,0.71,201.91,201.86,6.12528306]
[1760376722216,9.69,201.9,201.85,6.12528306]
[1760376722420,0.71,201.89,201.85,6.12528306]
[1760376722581,6.12528306,201.9,201.84,6.12528306]
[1760376722917,8.98,201.89,201.87,6.12528306]
[1760376723223,9.69,201.89,201.87,6.12528306]
[1760376723401,9.69,201.89,201.86,6.12528306]
[1760376724111,8.98,201.89,201.86,6.12528306]
[1760376724294,0.71,201.88,201.82,20.8]
[1760376724498,0.71,201.88,201.79,12.3885504]
[1760376724499,6.12528306,201.85,201.79,6.12528306]
[1760376724705,9.69,201.84,201.79,6.12528306]
[1760376724886,6.12528306,201.82,201.75,4.95662949]
[1760376725091,15.10528306,201.81,201.73,4.95688242]
[1760376725290,0.71,201.83,201.79,6.12528306]
[1760376725611,8.98,201.82,201.8,6.12528306]
[1760376725796,0.71,201.86,201.81,6.12528306]
[1760376725999,9.69,201.85,201.8,6.12528306]
[1760376726205,0.71,201.84,201.8,6.12528306]
[1760376726408,10.87647521,201.87,201.82,6.12528306]
[1760376726592,8.98,201.86,201.85,6.12528306]
[1760376726798,8.98,201.86,201.84,6.12528306]
[1760376726986,8.98,201.86,201.85,6.12528306]
[1760376727410,8.98,201.86,201.85,11.07945695]
[1760376727989,8.98,201.86,201.85,31.87945695]
[1760376730616,8.98,201.86,201.85,32.38945695]
[1760376730803,8.98,201.86,201.85,26.26417389]
[1760376731005,8.98,201.86,201.85,32.38945695]
[1760376733019,8.98,201.86,201.85,31.87945695]
[1760376733220,8.98,201.86,201.85,32.38945695]
[1760376733387,0.1,201.93,201.85,32.38945695]
[1760376733594,0.1,201.93,201.92,11.07773947]
[1760376733795,9.08,201.93,201.92,11.07773947]
[1760376734313,9.79,201.93,201.82,0.51]
[1760376734618,14.74224359,201.93,201.89,6.12528306]
[1760376734792,0.71,201.92,201.89,6.12528306]
[1760376734988,0.71,201.91,201.88,6.12528306]
[1760376735314,0.71,201.91,201.89,6.12528306]
[1760376735508,9.08,201.93,201.89,6.12528306]
[1760376735713,9.08,201.93,201.9,6.12528306]
[1760376735913,0.71,201.92,201.9,6.12528306]
[1760376736210,0.71,201.91,201.9,6.12528306]
[1760376736594,9.79,201.93,201.9,6.12528306]
[1760376736796,0.71,201.92,201.9,6.12528306]
[1760376736998,9.08,201.93,201.89,4.95316749]
[1760376737218,0.71,201.91,201.9,6.12528306]
[1760376737406,9.79,201.93,201.9,6.12528306]
[1760376737601,9.08,201.93,201.91,6.12528306]
[1760376737826,0.71,201.92,201.91,6.12528306]
[1760376738618,9.08,201.93,201.91,6.12528306]
[1760376738983,9.08,201.93,201.82,24.77455158]
[1760376738984,11.7879157,201.92,201.79,6.29230237]
[1760376739103,6.12528306,201.86,201.73,4.9571209]
[1760376739306,6.12528306,201.83,201.73,5.4671209]
[1760376739634,8.98,201.82,201.8,6.12528306]
[1760376739794,0.68,201.86,201.81,6.12528306]
[1760376739995,17.33377368,201.92,201.84,6.12528306]
[1760376739996,8.98,201.85,201.84,6.12528306]
[1760376740194,9.66,201.85,201.84,6.12528306]
[1760376740409,0.68,201.89,201.84,6.12528306]
[1760376740620,9.66,201.88,201.85,6.12528306]
[1760376740923,8.98,201.87,201.85,6.12528306]
[1760376741098,8.98,201.87,201.86,6.12528306]
[1760376741300,0.68,201.88,201.86,6.12528306]
[1760376741624,8.98,201.87,201.83,17.34132685]
[1760376742844,8.98,201.87,201.86,6.12528306]
[1760376743439,8.98,201.87,201.82,20.8]
[1760376743754,0.68,201.86,201.83,6.12528306]
[1760376744048,0.68,201.85,201.8,6.12528306]
[1760376744263,9.66,201.84,201.8,6.12528306]
[1760376744451,9.66,201.84,201.79,6.12528306]
[1760376744452,0.68,201.83,201.79,6.12528306]
[1760376744620,0.68,201.82,201.79,6.12528306]
[1760376744960,8.98,201.81,201.8,6.12528306]
[1760376746055,8.98,201.81,201.8,11.08068444]
[1760376746739,8.98,201.81,201.8,4.95540138]
[1760376746925,8.98,201.81,201.79,11.08089448]
[1760376747125,0.68,201.8,201.78,26.92528306]
[1760376747444,0.68,201.79,201.74,6.12528306]
[1760376747627,9.66,201.78,201.7,4.95770376]
[1760376747828,6.80528306,201.77,201.71,6.12528306]
[1760376748143,4.95638382,201.76,201.71,6.12528306]
[1760376748334,8.98,201.75,201.71,6.12528306]
[1760376748523,0.68,201.74,201.71,6.12528306]
[1760376748843,8.98,201.75,201.73,6.12528306]
[1760376749034,8.98,201.75,201.72,6.12528306]
[1760376749229,0.68,201.74,201.64,0.51]
[1760376749431,0.68,201.74,201.66,6.12528306]
[1760376749432,6.12528306,201.72,201.66,6.12528306]
[1760376749631,9.66,201.71,201.68,6.12528306]
[1760376749842,4.95616015,201.77,201.7,6.12528306]
[1760376750022,13.93642994,201.76,201.72,6.12528306]
[1760376750222,9.66,201.76,201.72,6.12528306]
[1760376750448,0.68,201.75,201.72,6.12528306]
[1760376750826,0.68,201.74,201.72,6.12528306]
[1760376751024,8.98,201.73,201.72,6.12528306]